{"text_format":"3","workbook":"xlsx","n_sheets":1,"sheets":["ОБЖ"],"not_rendered":{"defined_names":2},"read":"whole","date_system":"1900"}

{"sheet":"ОБЖ","index":0,"n_rows":20,"n_cols":15,"rows_kept":20}
["№","Фамилия","Имя","Отчество","Дата рождения","Пол","Участник с ОВЗ (да/нет)","Класс обучения","Класс участия","Балл","Максимальный балл","Статус","Призёр муниципального этапа прошлого года","ФИО учителя","Место работы учителя"]
[1,"Абдуллина","Алина","Руслановна","2013-06-14","Ж","нет",3,4,31,40,"победитель","нет","Ибрагимов Равиль Камилевич","МАОУ СОШ №5 БМР РТ"]
[2,"Музафарова","Султана","Руслановна","2013-08-19","Ж","нет",3,4,27,40,"призер","нет",{"$f":"$N$2","v":"Ибрагимов Равиль Камилевич"},{"$f":"$O$2","v":"МАОУ СОШ №5 БМР РТ"}]
[3,"Османова","Айша","Омарасхабовна","2012-08-11","Ж","нет",4,4,23,40,"участник","нет","Ибрагимов Равиль Камилевич","МАОУ СОШ №5 БМР РТ"]
[4,"Шайхуллин","Тагир","Ильмирович","2012-02-14","М","нет",4,4,25,40," призер","нет","Ибрагимов Равиль Камилевич","МАОУ СОШ №5 БМР РТ"]
[5,"Мухаррамов","Самат","Радикович","2011-08-10","М","нет",5,6,17,40,"участник","нет"," Ибрагимов Равиль Камилевич","МАОУ СОШ №5 БМР РТ"]
[6,"Назмутдинов","Самир","Эмилевич","2010-10-08","М","нет",6,6,19,40,"участник","нет",{"$f":"$N$6","v":" Ибрагимов Равиль Камилевич"},{"$f":"$O$6","v":"МАОУ СОШ №5 БМР РТ"}]
[7,"Гарапова","Диляра","Рустамовна","2010-11-11","Ж","нет",6,6,22,40,"победитель","нет"," Ибрагимов Равиль Камилевич","МАОУ СОШ №5 БМР РТ"]
[8,"Хабипова","Диляра","Ильнуровна","2010-05-19","Ж","нет",6,6,14,40,"участник","нет"," Ибрагимов Равиль Камилевич","МАОУ СОШ №5 БМР РТ"]
[9,"Газизова","Самира"," Радмировна"," 03.04.2009","Ж","нет",7,8,97,140,"призекр","нет","Ибрагимов Равиль Камилевич","МАОУ СОШ №5 БМР РТ"]
[10,"Спиридонов","Даниил","Романович","2009-12-10","М","нет",7,8,102,{"$f":"$K$6","v":40},"победитель","нет",{"$f":"$N$6","v":" Ибрагимов Равиль Камилевич"},{"$f":"$O$6","v":"МАОУ СОШ №5 БМР РТ"}]
[11,"Салимова"," Лейсан","Зульфатовна","2008-09-29","Ж","нет",8,8,84,40,"призер","нет"," Ибрагимов Равиль Камилевич","МАОУ СОШ №5 БМР РТ"]
[12,"Хамидуллин","Эмиль","Ремирович","2008-06-23","М","нет",8,8,81,40,"участник","нет"," Ибрагимов Равиль Камилевич","МАОУ СОШ №5 БМР РТ"]
[13,"Газизова","Самира"," Радмировна"," 03.04.2009","Ж","нет",7,8,97,140,"призекр","нет","Ибрагимов Равиль Камилевич","МАОУ СОШ №5 БМР РТ"]
[14,"Спиридонов","Даниил","Романович","2009-12-10","М","нет",7,8,102,{"$f":"$K$6","v":40},"победитель","нет",{"$f":"$N$6","v":" Ибрагимов Равиль Камилевич"},{"$f":"$O$6","v":"МАОУ СОШ №5 БМР РТ"}]
[15,"Салимова"," Лейсан","Зульфатовна","2008-09-29","Ж","нет",8,8,84,40,"призер","нет"," Ибрагимов Равиль Камилевич","МАОУ СОШ №5 БМР РТ"]
[16,"Хамидуллин","Эмиль","Ремирович","2008-06-23","М","нет",8,8,81,40,"участник","нет"," Ибрагимов Равиль Камилевич","МАОУ СОШ №5 БМР РТ"]
[17,"Валиев ","Раниль","Винерович","2007-01-26","М","нет",10,11,103,140,"победитель","да","Ибрагимов Равиль Камилевич","МАОУ СОШ №5 БМР РТ"]
[18,"Гафуров","Анас"," Шамилевич"," 22.09.2005","М","нет",11,11,96,140,"призер","нет",{"$f":"$N$6","v":" Ибрагимов Равиль Камилевич"},{"$f":"$O$6","v":"МАОУ СОШ №5 БМР РТ"}]
[19,"Мухаметзянов  ","Радель","Ильшатович","2005-02-22","М","нет",11,11,91,140,"призер","да"," Ибрагимов Равиль Камилевич","МАОУ СОШ №5 БМР РТ"]